fUSD/lending_fUSD_20240727
["ID","MTS","AMOUNT","RATE_DAILY","PERIOD"]
[333324973,1722056697684,-500.0,0.00010997,2]
[333324974,1722056697705,-500.0,0.00010997,2]
[333324975,1722056697879,-625.0,0.00010997,2]
[333324976,1722056697902,-500.0,0.00010997,2]
[333324977,1722056697923,-500.0,0.00010997,2]
[333324978,1722056697945,-505.8497531,0.00010997,2]
[333324979,1722056697966,-500.0,0.00010997,2]
[333324980,1722056697986,-221.50124795,0.00010997,2]
[333324981,1722056698007,-622.19,0.00010997,2]
[333324982,1722056698027,-500.0,0.00010997,2]
[333324983,1722056698048,-500.0,0.00010997,2]
[333324984,1722056698068,-500.0,0.00010997,2]
[333324985,1722056698089,-500.0,0.00010997,2]
[333324986,1722056698113,-500.0,0.00010998,2]
[333324987,1722056698135,-500.0,0.00010998,2]
[333324988,1722056698157,-500.0,0.00010998,2]
[333324989,1722056698177,-500.0,0.00010998,2]
[333324990,1722056698201,-500.0,0.00010998,2]
[333324991,1722056698222,-500.0,0.00010998,2]
[333324992,1722056698243,-152.37,0.00010998,2]
[333324993,1722056698264,-389.38,0.00010998,2]
[333324994,1722056698285,-501.06816755,0.00010998,2]
[333324995,1722056698306,-500.0,0.00010998,2]
[333324996,1722056698329,-500.0,0.00010998,2]
[333324997,1722056698351,-500.0,0.00010998,2]
[333324998,1722056698373,-500.0,0.00010998,2]
[333324999,1722056698394,-500.0,0.00010998,2]
[333325000,1722056698415,-500.0,0.00010998,2]
[333325001,1722056698437,-500.0,0.00010998,2]
[333325002,1722056698459,-500.0,0.00010998,2]
[333325003,1722056698481,-373.22,0.00010998,2]
[333325004,1722056698502,-29238.9719992,0.00010998,2]
[333325005,1722056698524,-1911.2554755,0.00010998,2]
[333325006,1722056698546,-500.0,0.00010999,2]
[333325007,1722056698571,-500.0,0.00010999,2]
[333325008,1722056698592,-410.1540272,0.00010999,2]
[333325009,1722056698613,-500.0,0.00010999,2]
[333325010,1722056698635,-500.0,0.00010999,2]
[333325011,1722056698656,-510.43255455,0.00010999,2]
[333325012,1722056698678,-500.0,0.00010999,2]
[333325013,1722056698700,-507.50818839,0.00010999,2]
[333325014,1722056698722,-500.0,0.00010999,2]
[333325015,1722056698744,-500.0,0.00010999,2]
[333325016,1722056698766,-500.0,0.00010999,2]
[333325017,1722056698789,-500.0,0.00010999,2]
[333325018,1722056698811,-500.0,0.00010999,2]
[333325019,1722056698834,-500.0,0.00010999,2]
[333325020,1722056698857,-500.0,0.00010999,2]
[333325021,1722056698880,-500.0,0.00010999,2]
[333325022,1722056698902,-500.0,0.00010999,2]
[333325023,1722056698924,-500.0,0.00010999,2]
[333325024,1722056698947,-500.0,0.00010999,2]
[333325025,1722056698968,-500.0,0.00010999,2]
[333325026,1722056698990,-500.0,0.00010999,2]
[333325027,1722056699014,-191.0,0.00010999,2]
[333325028,1722056699035,-500.0,0.00010999,2]
[333325029,1722056699055,-500.0,0.00010999,2]
[333325030,1722056699077,-500.0,0.00010999,2]
[333325031,1722056699098,-500.0,0.00010999,2]
[333325032,1722056699124,-500.0,0.00010999,2]
[333325033,1722056699145,-483.43106008,0.00010999,2]
[333325034,1722056699166,-500.0,0.00010999,2]
[333325035,1722056699188,-500.0,0.00010999,2]
[333325036,1722056699209,-500.0,0.00010999,2]
[333325037,1722056699229,-500.0,0.00010999,2]
[333325038,1722056699250,-500.0,0.00010999,2]
[333325039,1722056699271,-500.0,0.00010999,2]
[333325040,1722056699292,-500.0,0.00010999,2]
[333325041,1722056699313,-500.0,0.00010999,2]
[333325042,1722056699335,-500.0,0.00010999,2]
[333325043,1722056699355,-153.1,0.00010999,2]
[333325044,1722056699375,-2120.42,0.00010999,2]
[333325045,1722056699396,-529.0,0.00011,2]
[333325046,1722056699419,-152419.7869224,0.00011,2]
[333325047,1722056699442,-1417510.84405582,0.00011,2]
[333325048,1722056699464,-456264.22754066,0.00011,2]
[333325049,1722056699490,-500.0,0.00011,2]
[333325050,1722056699512,-500.0,0.00011,2]
[333325051,1722056699532,-500.0,0.00011,2]
[333325052,1722056699554,-500.0,0.00011,2]
[333325053,1722056699575,-500.0,0.00011,2]
[333325054,1722056699597,-500.0,0.00011,2]
[333325055,1722056699618,-500.0,0.00011,2]
[333325056,1722056699640,-500.0,0.00011,2]
[333325057,1722056699662,-500.0,0.00011,2]
[333325058,1722056699685,-500.0,0.00011,2]
[333325059,1722056699706,-500.0,0.00011,2]
[333325060,1722056699727,-500.0,0.00011,2]
[333325061,1722056699748,-500.0,0.00011,2]
[333325062,1722056699770,-500.0,0.00011,2]
[333325063,1722056699791,-500.0,0.00011,2]
[333325064,1722056699812,-500.0,0.00011,2]
[333325065,1722056699834,-500.0,0.00011,2]
[333325066,1722056699854,-500.0,0.00011,2]
[333325067,1722056699874,-500.0,0.00011,2]
[333325068,1722056699894,-500.0,0.00011,2]
[333325069,1722056699916,-500.0,0.00011,2]
[333325070,1722056699937,-500.0,0.00011,2]
[333325071,1722056699959,-500.0,0.00011,2]
[333325072,1722056699980,-500.0,0.00011,2]
[333325073,1722056700003,-500.0,0.00011,2]
[333325074,1722056700027,-500.0,0.00011,2]
[333325075,1722056700048,-500.0,0.00011,2]
[333325076,1722056700069,-500.0,0.00011,2]
[333325077,1722056700090,-500.0,0.00011,2]
[333325078,1722056700114,-500.0,0.00011,2]
[333325079,1722056700135,-500.0,0.00011,2]
[333325080,1722056700156,-500.0,0.00011,2]
[333325081,1722056700177,-500.0,0.00011,2]
[333325082,1722056700200,-500.0,0.00011,2]
[333325083,1722056700220,-500.0,0.00011,2]
[333325084,1722056700240,-500.0,0.00011,2]
[333325085,1722056700261,-500.0,0.00011,2]
[333325086,1722056700282,-500.0,0.00011,2]
[333325087,1722056700303,-500.0,0.00011,2]
[333325088,1722056700324,-500.0,0.00011,2]
[333325089,1722056700345,-500.0,0.00011,2]
[333325090,1722056700366,-500.0,0.00011,2]
[333325091,1722056700387,-500.0,0.00011,2]
[333325092,1722056700408,-500.0,0.00011,2]
[333325093,1722056700429,-500.0,0.00011,2]
[333325094,1722056700449,-500.0,0.00011,2]
[333325095,1722056700469,-500.0,0.00011,2]
[333325096,1722056700489,-500.0,0.00011,2]
[333325097,1722056700510,-500.0,0.00011,2]
[333325098,1722056700531,-500.0,0.00011,2]
[333325099,1722056700555,-500.0,0.00011,2]
[333325100,1722056700578,-500.0,0.00011,2]
[333325101,1722056700599,-500.0,0.00011,2]
[333325102,1722056700619,-500.0,0.00011,2]
[333325103,1722056700640,-500.0,0.00011,2]
[333325104,1722056700660,-500.0,0.00011,2]
[333325105,1722056700681,-500.0,0.00011,2]
[333325106,1722056700702,-500.0,0.00011,2]
[333325107,1722056700723,-500.0,0.00011,2]
[333325108,1722056700743,-500.0,0.00011,2]
[333325109,1722056700765,-730.0,0.00011,2]
[333325110,1722056700787,-1240519.11557744,0.00011,2]
[333325111,1722056700813,-395954.75120497,0.00011,2]
[333325112,1722056700836,-2565351.63757916,0.00011,2]
[333325113,1722056700859,-5822783.28470206,0.00011,2]
[333325114,1722056700882,-553033.11685758,0.00011,2]
[333325115,1722056700906,-2591138.13470701,0.00011,2]
[333325116,1722056773819,-250.0,0.00010339,2]
[333325117,1722056773846,-1447.33227478,0.000109,2]
[333325118,1722056773872,-2088.62,0.00010996,2]
[333325119,1722056773896,-500.0,0.00010996,2]
[333325120,1722056773922,-2088.62,0.00010999,2]
[333325121,1722056773949,-2088.62,0.00010999,2]
[333325122,1722056773975,-2088.62,0.00010999,2]
[333325123,1722056774001,-2088.62,0.00010999,2]
[333325124,1722056774027,-2088.62,0.00010999,2]
[333325125,1722056774053,-2088.62,0.00010999,2]
[333325126,1722056774077,-2088.62,0.00010999,2]
[333325127,1722056774101,-2088.62,0.00010999,2]
[333325128,1722056774131,-2088.62,0.00010999,2]
[333325129,1722056774157,-2088.62,0.00010999,2]
[333325130,1722056774181,-2088.62,0.00010999,2]
[333325131,1722056774204,-2088.62,0.00010999,2]
[333325132,1722056774228,-2088.62,0.00010999,2]
[333325133,1722056774251,-2088.62,0.00010999,2]
[333325134,1722056774274,-2088.62,0.00010999,2]
[333325135,1722056774298,-2088.62,0.00010999,2]
[333325136,1722056774321,-2088.62,0.00010999,2]
[333325137,1722056774344,-2088.62,0.00010999,2]
[333325138,1722056774366,-2088.62,0.00010999,2]
[333325139,1722056774388,-2088.62,0.00010999,2]
[333325140,1722056774412,-2088.62,0.00010999,2]
[333325141,1722056774434,-2088.62,0.00010999,2]
[333325142,1722056774765,-2088.74725272,0.00010999,2]
[333325143,1722056774788,-500.0,0.00010999,2]
[333325144,1722056774810,-500.0,0.00010999,2]
[333325145,1722056774831,-500.0,0.00010999,2]
[333325146,1722056774852,-500.0,0.00010999,2]
[333325147,1722056774874,-484.59332595,0.00010999,2]
[333325148,1722056774896,-535.0,0.00011,2]
[333325149,1722056774925,-18856.01043257,0.00011,2]
[333325150,1722056774947,-18000.0,0.00011,2]
[333325151,1722056774969,-150.0,0.00011,2]
[333325152,1722056774993,-250328.66777271,0.00011,2]
[333325153,1722056775017,-3133466.65553211,0.00011,2]
[333325154,1722056775042,-1737791.5914988,0.00011,2]
[333325155,1722056775064,-2000.0,0.00011,2]
[333325156,1722056775088,-7591585.12610359,0.00011,2]
[333325157,1722056775113,-2427847.2735617,0.00011,2]
[333325158,1722056775137,-313630.74224507,0.00011,2]
[333325159,1722056806950,152.1,0.000149,31]
[333325160,1722056806981,152.1,0.000149,31]
[333325161,1722056807013,152.1,0.000149,31]
[333325162,1722056807054,152.1,0.000149,31]
[333325163,1722056807108,152.1,0.000149,31]
[333325164,1722056807161,152.1,0.000149,31]
[333325165,1722056807399,152.1,0.000149,31]
[333325166,1722056807438,152.1,0.000149,31]
[333325167,1722056807482,152.1,0.000149,31]
[333325168,1722056807522,152.1,0.000149,31]
[333325169,1722056807552,152.1,0.000149,31]
[333325170,1722056807997,152.1,0.000149,31]
[333325171,1722056808033,152.1,0.000149,31]
[333325172,1722056808061,152.1,0.000149,31]
[333325173,1722056808100,152.1,0.000149,31]
[333325185,1722056979798,-400.0,9.9e-05,3]
[333325186,1722056979822,-751.31,9.963e-05,2]
[333325187,1722056979845,-900.0,0.0001,3]
[333325188,1722056979867,-372.32,0.00010005,2]
[333325189,1722056979891,-1400.0,0.000101,3]
[333325190,1722056979915,-1900.0,0.000102,3]
[333325191,1722056979939,-165.54,0.0001022,2]
[333325192,1722056979962,-2400.0,0.000103,3]
[333325193,1722056979984,-341.98,0.00010339,2]
[333325194,1722056980006,-400.0,0.000104,3]
[333325195,1722056980029,-400.0,0.000105,3]
[333325196,1722056980050,-400.0,0.000106,3]
[333325197,1722056980072,-142504.0,0.000106,2]
[333325198,1722056980094,-400.0,0.000107,3]
[333325199,1722056980116,-190131.0,0.000107,2]
[333325200,1722056980137,-1000.0,0.000108,3]
[333325201,1722056980158,-3000.0,0.0001089,2]
[333325202,1722056980180,-14129.3175,0.000109,2]
[333325203,1722056980201,-2500.0,0.000109,2]
[333325204,1722056980220,-441.7725,0.000109,2]
[333325205,1722056980241,-82514.2704,0.000109,2]
[333325206,1722056980263,-1196.99892424,0.000109,2]
[333325207,1722056980284,-1000.0,0.000109,2]
[333325208,1722056980309,-2000.0,0.000109,2]
[333325209,1722056980332,-2644.34656102,0.000109,2]
[333325210,1722056980353,-250.0,0.00010959,2]
[333325211,1722056980374,-500.0,0.00010977,2]
[333325212,1722056980397,-500.0,0.00010977,2]
[333325213,1722056980418,-500.0,0.00010977,2]
[333325214,1722056980440,-108957.14411474,0.0001099,2]
[333325234,1722057031887,-500.0,0.0001,2]
[333325235,1722057031898,-500.0,0.0001,2]
[333325236,1722057031908,-500.0,0.0001,2]
[333325237,1722057031918,-500.0,0.0001,2]
[333325238,1722057031932,-330.08,0.0001,2]
[333325239,1722057031942,-4920.14714363,0.000108,2]
[333325240,1722057031954,-301.02081451,0.000108,2]
[333325241,1722057037687,-31003.97030244,0.000108,2]
[333325242,1722057037749,-372.44303942,0.000108,2]
[333325243,1722057037759,-111.84907156,0.00010977,2]
[333325244,1722057038080,-568.37092844,0.00010977,2]
[333325245,1722057038090,-500.0,0.00010977,2]
[333325246,1722057038100,-500.0,0.00010977,2]
[333325247,1722057038109,-122.11233513,0.00010978,2]
[333325248,1722057038120,-5703.88766487,0.00010978,2]
[333325249,1722057038133,-38376.0,0.00010978,2]
[333325250,1722057038145,-300.0,0.00010989,2]
[333325251,1722057038154,-500.0,0.00010989,2]
[333325252,1722057038164,-518.64,0.00010989,2]
[333325253,1722057038173,-508.54,0.00010989,2]
[333325254,1722057038183,-153.93,0.0001099,2]
[333325255,1722057038192,-7991.94126126,0.0001099,2]
[333325256,1722057038203,-956.32763841,0.0001099,2]
[333325257,1722057038214,-2208.23057587,0.0001099,2]
[333325258,1722057038224,-857.52133597,0.0001099,2]
[333325259,1722057038306,-9902.55119582,0.0001099,2]
[333325282,1722057039740,-500.0,0.00010989,2]
[333325283,1722057039750,-187.79291592,0.0001099,2]
[333325284,1722057039761,-1601.06574,0.0001099,2]
[333325285,1722057039799,-379.9422459,0.0001099,2]
[333325286,1722057039973,-39282.21591552,0.0001099,2]
[333325287,1722057040031,-676.23,0.0001099,2]
[333325288,1722057040043,-6032.55630432,0.0001099,2]
[333325289,1722057040054,-3054.19398321,0.0001099,2]
[333325290,1722057040089,-1350.88058715,0.0001099,2]
[333325291,1722057040101,-341.3621091,0.0001099,2]
[333325292,1722057040112,-870.44656352,0.0001099,2]
[333325293,1722057040124,-979.225,0.0001099,2]
[333325823,1722057045842,-500.0,0.00010989,2]
[333325824,1722057045852,-97.60859151,0.00010989,2]
[333325924,1722057046897,-402.39140849,0.00010989,2]
[333325926,1722057046907,-500.0,0.00010989,2]
[333325929,1722057046916,-64370.37251329,0.0001099,2]
[333325931,1722057046926,-449.00481833,0.0001099,2]
[333325933,1722057046936,-412.62978189,0.0001099,2]
[333325935,1722057046945,-961.3669337,0.0001099,2]
[333325936,1722057046955,-856.71288508,0.0001099,2]
[333325938,1722057046964,-18818.81058784,0.0001099,2]
[333325940,1722057046973,-10000.0,0.0001099,2]
[333325942,1722057046982,-300.39366149,0.0001099,2]
[333325944,1722057046992,-1049.39668644,0.0001099,2]
[333325946,1722057047003,-20000.0,0.0001099,2]
[333325948,1722057047012,-181.59978703,0.0001099,2]
[333325950,1722057047021,-153.93,0.0001099,2]
[333325952,1722057047031,-153.93,0.0001099,2]
[333325954,1722057047040,-153.93,0.0001099,2]
[333325956,1722057047049,-153.93,0.0001099,2]
[333325958,1722057047059,-153.93,0.0001099,2]
[333325960,1722057047067,-153.93,0.0001099,2]
[333325962,1722057047077,-153.93,0.0001099,2]
[333325964,1722057047086,-153.93,0.0001099,2]
[333325966,1722057047095,-153.93,0.0001099,2]
[333325968,1722057047105,-153.93,0.0001099,2]
[333325970,1722057047115,-153.93,0.0001099,2]
[333325972,1722057047124,-153.93,0.0001099,2]
[333325974,1722057047134,-153.93,0.0001099,2]
[333325976,1722057047143,-153.93,0.0001099,2]
[333325978,1722057047152,-153.93,0.0001099,2]
[333325980,1722057047162,-153.93,0.0001099,2]
[333325982,1722057047171,-153.93,0.0001099,2]
[333325984,1722057047180,-153.93,0.0001099,2]
[333325986,1722057047189,-153.93,0.0001099,2]
[333325988,1722057047198,-153.93,0.0001099,2]
[333325989,1722057047208,-153.93,0.0001099,2]
[333325991,1722057047217,-153.93,0.0001099,2]
[333325993,1722057047228,-153.93,0.0001099,2]
[333325995,1722057047238,-155.56074322,0.0001099,2]
[333325997,1722057047247,-181.59978703,0.0001099,2]
[333325999,1722057047256,-50000.0,0.00010996,2]
[333326001,1722057047265,-150.0,0.00010996,2]
[333326003,1722057047276,-500.0,0.00010996,2]
[333326005,1722057047286,-500.0,0.00010996,2]
[333326007,1722057047295,-500.0,0.00010996,2]
[333326008,1722057047305,-500.0,0.00010996,2]
[333326010,1722057047316,-500.0,0.00010996,2]
[333326012,1722057047326,-500.0,0.00010996,2]
[333326014,1722057047335,-500.0,0.00010996,2]
[333326016,1722057047345,-500.0,0.00010996,2]
[333326018,1722057047353,-346.23,0.00010996,2]
[333326020,1722057047362,-500.0,0.00010997,2]
[333326022,1722057047371,-500.0,0.00010997,2]
[333326023,1722057047381,-500.0,0.00010997,2]
[333326025,1722057047390,-500.0,0.00010997,2]
[333326027,1722057047400,-500.0,0.00010997,2]
[333326029,1722057047409,-500.0,0.00010997,2]
[333326031,1722057047418,-500.0,0.00010997,2]
[333326033,1722057047427,-500.0,0.00010997,2]
[333326035,1722057047437,-500.0,0.00010997,2]
[333326037,1722057047446,-500.0,0.00010997,2]
[333326038,1722057047455,-500.0,0.00010997,2]
[333326040,1722057047464,-500.0,0.00010997,2]
[333326042,1722057047473,-500.0,0.00010997,2]
[333326044,1722057047482,-500.0,0.00010997,2]
[333326046,1722057047492,-415.05011364,0.00010997,2]
[333326048,1722057047501,-500.0,0.00010997,2]
[333326050,1722057047511,-500.0,0.00010997,2]
[333326052,1722057047520,-500.0,0.00010997,2]
[333326053,1722057047530,-500.0,0.00010997,2]
[333326055,1722057047539,-500.0,0.00010997,2]
[333326057,1722057047548,-500.0,0.00010997,2]
[333326059,1722057047558,-500.0,0.00010997,2]
[333326061,1722057047567,-5541.7598263,0.00010998,2]
[333326063,1722057047576,-355.3023929,0.00010998,2]
[333326065,1722057047588,-41571.0322802,0.00010998,2]
[333326067,1722057047598,-162.1733467,0.00010998,2]
[333326069,1722057047608,-3239.3807126,0.00010998,2]
[333326071,1722057047618,-4646.0633456,0.00010998,2]
[333326072,1722057047627,-500.0,0.00010999,2]
[333326074,1722057047638,-500.0,0.00010999,2]
[333326076,1722057047647,-500.0,0.00010999,2]
[333326078,1722057047656,-500.0,0.00010999,2]
[333326080,1722057047665,-500.0,0.00010999,2]
[333326082,1722057047676,-500.0,0.00010999,2]
[333326084,1722057047686,-500.0,0.00010999,2]
[333326086,1722057047696,-500.0,0.00010999,2]
[333326088,1722057047707,-500.0,0.00010999,2]
[333326090,1722057047718,-500.0,0.00010999,2]
[333326092,1722057047727,-500.0,0.00010999,2]
[333326094,1722057047736,-410.1540272,0.00010999,2]
[333326096,1722057047746,-500.0,0.00010999,2]
[333326098,1722057047755,-165.32,0.00010999,2]
[333326100,1722057047764,-500.0,0.00010999,2]
[333326102,1722057047773,-500.0,0.00010999,2]
[333326104,1722057047782,-500.0,0.00010999,2]
[333326106,1722057047791,-389.38,0.00010999,2]
[333326108,1722057047801,-500.0,0.00010999,2]
[333326110,1722057047811,-500.0,0.00010999,2]
[333326112,1722057047820,-500.0,0.00010999,2]
[333326114,1722057047830,-500.0,0.00010999,2]
[333326116,1722057047840,-152.37,0.00010999,2]
[333326118,1722057047849,-500.0,0.00010999,2]
[333326120,1722057047858,-500.0,0.00010999,2]
[333326122,1722057047868,-500.0,0.00010999,2]
[333326124,1722057047877,-548.46,0.00010999,2]
[333326126,1722057047887,-500.0,0.00010999,2]
[333326128,1722057047896,-500.0,0.00010999,2]
[333326130,1722057047905,-500.0,0.00010999,2]
[333326132,1722057047914,-267.06,0.00010999,2]
[333326134,1722057047923,-500.0,0.00010999,2]
[333326136,1722057047932,-625.78,0.00010999,2]
[333326138,1722057047942,-500.0,0.00010999,2]
[333326140,1722057047951,-500.0,0.00010999,2]
[333326142,1722057047961,-500.0,0.00010999,2]
[333326144,1722057047972,-500.0,0.00010999,2]
[333326146,1722057047981,-500.0,0.00010999,2]
[333326148,1722057047990,-500.0,0.00010999,2]
[333326150,1722057047999,-500.0,0.00010999,2]
[333326152,1722057048008,-500.0,0.00010999,2]
[333326154,1722057048018,-373.22,0.00010999,2]
[333326156,1722057048028,-500.0,0.00010999,2]
[333326158,1722057048038,-369.84,0.00010999,2]
[333326160,1722057048048,-500.0,0.00010999,2]
[333326162,1722057048057,-500.0,0.00010999,2]
[333326164,1722057048067,-500.0,0.00010999,2]
[333326166,1722057048076,-500.0,0.00010999,2]
[333326168,1722057048085,-1596.48259612,0.00010999,3]
[333326170,1722057048094,-637.74999999,0.00010999,2]
[333326172,1722057048104,-630.72,0.00010999,2]
[333326174,1722057048113,-500.0,0.00010999,2]
[333326176,1722057048122,-500.0,0.00010999,2]
[333326178,1722057048133,-680.22,0.00010999,2]
[333326180,1722057048142,-500.0,0.00010999,2]
[333326182,1722057048151,-379.47,0.00010999,2]
[333326183,1722057048160,-500.0,0.00010999,2]
[333326184,1722057048169,-500.0,0.00010999,2]
[333326185,1722057048179,-176.94067105,0.00010999,2]
[333326186,1722057048188,-426.98,0.00010999,2]
[333326187,1722057048197,-499.89224694,0.00010999,2]
[333326188,1722057048207,-500.0,0.00010999,2]
[333326189,1722057048216,-500.0,0.00010999,2]
[333326190,1722057048226,-500.0,0.00010999,2]
[333326191,1722057048236,-216.91646831,0.00010999,2]
[333326192,1722057048246,-500.0,0.00010999,2]
[333326193,1722057048256,-500.0,0.00010999,2]
[333326194,1722057048266,-500.0,0.00010999,2]
[333326195,1722057048276,-500.0,0.00010999,2]
[333326196,1722057048286,-492.89,0.00010999,2]
[333326197,1722057048297,-500.0,0.00010999,2]
[333326198,1722057048306,-500.0,0.00010999,2]
[333326199,1722057048317,-625.0,0.00010999,2]
[333326200,1722057048329,-500.0,0.00010999,2]
[333326201,1722057048338,-596.76844723,0.00010999,2]
[333326202,1722057048348,-375.044,0.00010999,2]
[333326203,1722057048359,-500.0,0.00010999,2]
[333326204,1722057048368,-279.73249937,0.00010999,2]
[333326205,1722057048378,-500.0,0.00010999,2]
[333326206,1722057048389,-500.0,0.00010999,2]
[333326207,1722057048400,-500.0,0.00010999,2]
[333326208,1722057048411,-500.0,0.00010999,2]
[333326209,1722057048420,-551.0,0.00011,2]
[333326210,1722057048430,-183044.68514094,0.00011,2]
[333326211,1722057048443,-14566.42989465,0.00011,2]
[333326212,1722057048452,-13342.07971582,0.00011,2]
[333326213,1722057048463,-3898.14041674,0.00011,2]
[333326214,1722057048475,-44781.60921649,0.00011,2]
[333326215,1722057048509,-500.0,0.00010997,2]
[333326216,1722057048518,-500.0,0.00010999,2]
[333326217,1722057048528,-2680.30187106,0.00011,2]
[333326242,1722057414631,152.12,0.000149,31]
[333326243,1722057414686,152.12,0.000149,31]
[333326244,1722057414744,152.12,0.000149,31]
[333326245,1722057414808,152.12,0.000149,31]
[333326246,1722057414871,152.12,0.000149,31]
[333326247,1722057414932,152.12,0.000149,31]
[333326248,1722057414996,152.12,0.000149,31]
[333326249,1722057415062,152.12,0.000149,31]
[333326250,1722057415115,152.12,0.000149,31]
[333326251,1722057415185,152.12,0.000149,31]
[333326252,1722057415242,152.12,0.000149,31]
[333326253,1722057415302,152.12,0.000149,31]
[333326254,1722057415369,152.12,0.000149,31]
[333326255,1722058021381,152.13,0.000149,31]
[333326256,1722058021437,152.13,0.000149,31]
[333326257,1722058021493,152.13,0.000149,31]
[333326258,1722058021556,152.13,0.000149,31]
[333326259,1722058021615,152.13,0.000149,31]
[333326260,1722058021672,152.13,0.000149,31]
[333326261,1722058021986,152.13,0.000149,31]
[333326262,1722058022071,152.13,0.000149,31]
[333326263,1722058022109,152.13,0.000149,31]
[333326264,1722058022145,152.13,0.000149,31]
[333326265,1722058022183,152.13,0.000149,31]
[333326266,1722058022216,152.13,0.000149,31]
[333326344,1722058232106,-2831.38732595,6.781e-05,7]
[333326345,1722058232117,-272.5,8.219e-05,2]
[333326346,1722058232128,-1327.51,9.9e-05,2]
[333326347,1722058232140,-237.62,9.9e-05,2]
[333326348,1722058232154,-250.0,9.905e-05,2]
[333326349,1722058232165,-594.07,9.935e-05,2]
[333326350,1722058232175,-1250.0,0.0001,2]
[333326351,1722058232186,-1000.0,0.00010007,2]
[333326352,1722058232198,-272.5,0.00010475,2]
[333326353,1722058232209,-3589.77,0.00010499,2]
[333326354,1722058232219,-1984.64267405,0.000105,2]
[333326355,1722058232239,-643.659991,0.000105,2]
[333326356,1722058232252,-1871.50836155,0.000105,2]
[333326357,1722058232328,-9629.5064734,0.000105,2]
[333326358,1722058232338,-530.1,0.000105,2]
[333326359,1722058232349,-590.12,0.000105,2]
[333326360,1722058232359,-425.65,0.000105,2]
[333326361,1722058232370,-530.1,0.000105,2]
[333326362,1722058232381,-196.588919,0.0001078,2]
[333326363,1722058232392,-154.054811,0.0001078,2]
[333326364,1722058232402,-747.79,0.000108,2]
[333326365,1722058232413,-2250.0601,0.00010878,2]
[333326366,1722058232425,-9431.59884163,0.0001088,2]
[333326367,1722058232436,-5201.0,0.00010889,2]
[333326368,1722058232446,-2500.0,0.00010889,2]
[333326369,1722058232457,-704.39,0.0001089,2]
[333326370,1722058232468,-8681.24272907,0.0001089,2]
[333326374,1722058237879,-500.0,0.00010889,2]
[333326375,1722058238020,-2048.6212,0.00010889,2]
[333326376,1722058238029,-17983.48847093,0.0001089,2]
[333326377,1722058238038,-1000.0,0.0001089,2]
[333326378,1722058238047,-9066.2509,0.0001089,2]
[333326379,1722058238056,-13009.94194829,0.0001089,2]
[333326380,1722058238071,-3742.70217563,0.0001089,2]
[333326381,1722058238082,-1356.00596654,0.0001089,2]
[333326382,1722058238109,-534.02114835,0.0001089,2]